bitfinex/quotes_ETHUSD_20251031
["timestamp","ask_amount","ask_price","bid_price","bid_amount"]
[1761954529202,9.96106723,3859.4,3859.3,0.9334]
[1761954532788,17.18719995,3859.4,3859.3,0.002]
[1761954533096,14.61679495,3859.4,3859.3,0.002]
[1761954533295,44.61679495,3859.4,3859.3,0.002]
[1761954534173,45.02327095,3859.4,3859.3,0.002]
[1761954540583,45.42982578,3859.4,3859.3,0.002]
[1761954541014,45.02327095,3859.4,3859.3,0.002]
[1761954541623,28.56173495,3859.4,3859.3,0.002]
[1761954542304,31.49962595,3859.4,3859.3,0.002]
[1761954543105,29.10855895,3859.4,3859.3,0.002]
[1761954543292,27.16146695,3859.4,3859.3,0.002]
[1761954544026,27.16154835,3859.4,3859.3,0.002]
[1761954544525,35.66251135,3859.4,3859.3,0.002]
[1761954545027,32.51896935,3859.4,3859.3,0.002]
[1761954545327,15.02335235,3859.4,3859.3,0.002]
[1761954545502,21.52978819,3859.4,3859.3,0.002]
[1761954546016,21.60038819,3859.4,3859.3,0.002]
[1761954546417,27.71608919,3859.4,3859.3,0.002]
[1761954547197,26.46906143,3859.4,3859.3,0.002]
[1761954547400,26.81200943,3859.4,3859.3,0.002]
[1761954547618,26.55240743,3859.4,3859.3,0.002]
[1761954547928,24.06332943,3859.4,3859.3,0.002]
[1761954548451,25.28817943,3859.4,3859.3,0.002]
[1761954549057,20.37219694,3859.4,3859.3,0.4538]
[1761954549254,5.83008187,3859.4,3859.3,3.53674347]
[1761954549423,2.82105023,3859.4,3859.3,3.53674347]
[1761954549623,2.75005023,3859.4,3859.3,3.53674347]
[1761954550528,0.55807023,3859.4,3859.3,3.04494347]
[1761954550757,4.1812,3859.6,3859.4,2.59105067]
[1761954551058,1.8351361,3859.8,3859.4,2.59105067]
[1761954551059,0.55807023,3859.5,3859.4,0.4918]
[1761954551262,0.1288,3859.4,3859.3,2.59308713]
[1761954551457,0.68687023,3859.4,3859.3,2.59308713]
[1761954551620,0.1288,3859.4,3859.3,3.04488713]
[1761954551823,0.68687023,3859.4,3859.3,3.53668713]
[1761954552036,0.1288,3859.4,3859.3,3.53668713]
[1761954552239,0.68687023,3859.4,3859.3,3.53668713]
[1761954552657,1.09331525,3859.4,3859.3,3.53668713]
[1761954552858,11.81951325,3859.4,3859.3,0.002]
[1761954553025,13.99465008,3859.4,3859.3,0.002]
[1761954553457,33.26845208,3859.4,3859.3,0.002]
[1761954553659,34.13710124,3859.4,3859.3,0.002]
[1761954553839,33.90672324,3859.4,3859.3,0.002]
[1761954554543,4.13710124,3859.4,3859.3,0.002]
[1761954554742,33.75656781,3859.4,3859.3,0.002]
[1761954555063,32.81913322,3859.4,3859.3,0.002]
[1761954555469,3.73065622,3859.4,3859.3,0.002]
[1761954555633,33.75656781,3859.4,3859.3,0.002]
[1761954555832,33.73065622,3859.4,3859.3,0.002]
[1761954559476,35.13033622,3859.4,3859.3,0.002]
[1761954559693,35.82857065,3859.4,3859.3,0.002]
[1761954560670,42.18656265,3859.4,3859.3,0.002]
[1761954560868,41.71196265,3859.4,3859.3,0.4647]
[1761954561081,18.15480223,3859.4,3859.3,0.4647]
[1761954561291,18.15480223,3859.4,3859.3,0.002]
[1761954561581,6.98166223,3859.4,3859.3,0.002]
[1761954561781,27.99390523,3859.4,3859.3,0.002]
[1761954561948,26.45377277,3859.4,3859.3,0.002]
[1761954562284,23.80461577,3859.4,3859.3,0.002]
[1761954562579,23.56245777,3859.4,3859.3,0.002]
[1761954563698,24.25113777,3859.4,3859.3,0.002]
[1761954563994,24.73063777,3859.4,3859.3,0.002]
[1761954564400,24.25113777,3859.4,3859.3,0.002]
[1761954564785,28.29597777,3859.4,3859.3,0.002]
[1761954565397,26.92194377,3859.4,3859.3,0.002]
[1761954565566,27.3284236,3859.4,3859.3,0.002]
[1761954565768,27.6351326,3859.4,3859.3,0.002]
[1761954566088,26.6676166,3859.4,3859.3,0.002]
[1761954566793,27.8706516,3859.4,3859.3,0.002]
[1761954567095,27.0932946,3859.4,3859.3,0.002]
[1761954567407,23.8696126,3859.4,3859.3,0.002]
[1761954567770,26.7213646,3859.4,3859.3,0.002]
[1761954568304,25.9061996,3859.4,3859.3,0.002]
[1761954568793,9.9996536,3859.4,3859.3,0.002]
[1761954568986,26.0336156,3859.4,3859.3,0.002]
[1761954569901,27.3289006,3859.4,3859.3,0.002]
[1761954570894,9.9996536,3859.4,3859.3,0.002]
[1761954571099,25.1295996,3859.4,3859.3,0.002]
[1761954571600,24.57152937,3859.4,3859.3,0.002]
[1761954571788,25.13060083,3859.4,3859.3,0.002]
[1761954572096,25.29734983,3859.4,3859.3,0.002]
[1761954572304,24.49832783,3859.4,3859.3,0.002]
[1761954573001,37.61758383,3859.4,3859.3,0.002]
[1761954573170,38.79592316,3859.4,3859.3,0.002]
[1761954573364,38.31642316,3859.4,3859.3,0.002]
[1761954574167,37.00265716,3859.4,3859.3,0.002]
[1761954575406,12.09917416,3859.4,3859.3,0.002]
[1761954575710,37.37627816,3859.4,3859.3,0.002]
[1761954575890,34.80490033,3859.4,3859.3,0.002]
[1761954576396,11.69269433,3859.4,3859.3,0.002]
[1761954576580,35.04887133,3859.4,3859.3,0.002]
[1761954576971,34.79774233,3859.4,3859.3,0.002]
[1761954577171,34.098903,3859.4,3859.3,0.002]
[1761954577372,34.50547192,3859.4,3859.3,0.002]
[1761954577599,34.49389292,3859.4,3859.3,0.002]
[1761954577897,33.87612592,3859.4,3859.3,0.002]
[1761954578463,33.80386392,3859.4,3859.3,0.002]
[1761954579004,34.50270325,3859.4,3859.3,0.002]
[1761954579503,42.09926325,3859.4,3859.3,0.002]
[1761954580374,41.31911125,3859.4,3859.3,0.002]
[1761954580574,41.13924425,3859.4,3859.3,0.002]
[1761954581607,42.09926325,3859.4,3859.3,0.002]
[1761954582494,40.98563492,3859.4,3859.3,0.002]
[1761954582691,41.73411192,3859.4,3859.3,0.002]
[1761954582891,40.55895692,3859.4,3859.3,0.002]
[1761954583675,41.87992392,3859.4,3859.3,0.002]
[1761954584609,11.87992392,3859.4,3859.3,0.002]
[1761954584809,41.54178792,3859.4,3859.3,0.002]
[1761954585808,41.78038992,3859.4,3859.3,0.002]
[1761954586438,39.35418492,3859.4,3859.3,0.002]
[1761954586839,41.87992392,3859.4,3859.3,0.002]
[1761954588638,40.10243092,3859.4,3859.3,0.002]
[1761954588834,11.87992392,3859.4,3859.3,0.002]
[1761954589038,41.87992392,3859.4,3859.3,0.002]
[1761954590707,11.87992392,3859.4,3859.3,0.002]
[1761954590907,41.87992392,3859.4,3859.3,0.002]
[1761954591108,40.99540492,3859.4,3859.3,0.002]
[1761954591307,46.44868467,3859.4,3859.3,0.002]
[1761954591842,47.33320367,3859.4,3859.3,0.002]
[1761954592620,31.28705963,3859.4,3859.3,0.002]
[1761954592823,35.07731838,3859.4,3859.3,0.002]
[1761954593936,36.89486138,3859.4,3859.3,0.002]
[1761954594821,36.89697038,3859.4,3859.3,0.002]
[1761954595148,23.31445728,3859.4,3859.3,0.4765]
[1761954595320,23.31445728,3859.4,3859.3,0.9635]
[1761954595943,31.37599928,3859.4,3859.3,0.9635]
[1761954597151,33.96370428,3859.4,3859.3,0.9635]
[1761954597452,33.96370428,3859.4,3859.3,0.4765]
[1761954598043,34.97020028,3859.4,3859.3,0.4765]
[1761954598244,34.71059428,3859.4,3859.3,0.4765]
[1761954598445,34.18654528,3859.4,3859.3,0.4765]
[1761954598744,28.71708857,3859.4,3859.3,0.4765]
[1761954599113,32.18611657,3859.4,3859.3,0.4765]
[1761954600142,33.15568657,3859.4,3859.3,0.4765]
[1761954600717,33.63168657,3859.4,3859.3,0.002]
[1761954600920,36.77030267,3859.4,3859.3,0.002]
[1761954601137,44.92326467,3859.4,3859.3,0.002]
[1761954601660,42.75592167,3859.4,3859.3,0.002]
[1761954601861,38.99688167,3859.4,3859.3,0.002]
[1761954602030,39.40337881,3859.4,3859.3,0.002]
[1761954602227,40.70688281,3859.4,3859.3,0.002]
[1761954602628,38.27988781,3859.4,3859.3,0.002]
[1761954603029,35.50373681,3859.4,3859.3,0.002]
[1761954603243,28.65690581,3859.4,3859.3,0.4765]
[1761954603563,29.35578484,3859.4,3859.3,0.4765]
[1761954603764,29.35578484,3859.4,3859.3,0.9635]
[1761954604150,20.99766009,3859.4,3859.3,0.9635]
[1761954604356,19.89636609,3859.4,3859.3,0.9635]
[1761954604865,17.72237809,3859.4,3859.3,0.9635]
[1761954605245,17.67632409,3859.4,3859.3,0.9635]
[1761954606262,36.65562181,3859.4,3859.3,0.002]
[1761954607254,47.26400081,3859.4,3859.3,0.002]
[1761954609373,46.85750367,3859.4,3859.3,0.002]
[1761954610737,46.48517367,3859.4,3859.3,0.002]
[1761954611548,46.85750367,3859.4,3859.3,0.002]
[1761954612769,47.73979857,3859.4,3859.3,0.002]
[1761954612969,48.36563716,3859.4,3859.3,0.002]
[1761954613338,47.88983716,3859.4,3859.3,0.002]
[1761954616451,17.88983716,3859.4,3859.3,0.002]
[1761954616656,47.88983716,3859.4,3859.3,0.002]
[1761954619798,47.48334226,3859.4,3859.3,0.002]
[1761954621563,31.805184,3859.3,3859.1,0.007]
[1761954621881,31.805184,3859.0,3858.9,0.002]
[1761954622085,38.67533437,3859.0,3858.9,0.002]
[1761954622306,41.5692187,3859.0,3858.9,0.002]
[1761954622477,43.22835557,3859.0,3858.9,0.002]
[1761954622991,43.63492414,3859.0,3858.9,0.002]
[1761954623363,49.99291614,3859.0,3858.9,0.002]
[1761954624227,4.39666321,3858.8,3858.7,0.002]
[1761954624527,35.62278485,3858.8,3858.7,0.002]
[1761954624829,38.6740848,3858.8,3858.7,0.002]
[1761954625328,38.77800992,3858.8,3858.7,0.002]
[1761954625496,39.18466361,3858.8,3858.7,0.002]
[1761954625696,9.18466361,3858.8,3858.7,0.002]
[1761954625923,39.18466361,3858.8,3858.7,0.002]
[1761954626533,45.54265561,3858.8,3858.7,0.002]
[1761954627401,46.47169518,3858.8,3858.7,0.002]
[1761954631341,45.54265561,3858.8,3858.7,0.002]
[1761954631664,45.13600192,3858.8,3858.7,0.002]
[1761954637468,45.94925502,3858.8,3858.7,0.002]
[1761954640966,45.54265837,3858.8,3858.7,0.002]
[1761954642404,46.47169794,3858.8,3858.7,0.002]
[1761954643840,46.87828817,3858.8,3858.7,0.002]
[1761954646308,15.9492486,3858.8,3858.7,0.002]
[1761954646604,45.9492486,3858.8,3858.7,0.002]
[1761954649607,42.89206939,3858.8,3858.7,0.002]
[1761954650315,44.2883039,3858.8,3858.7,0.002]
[1761954650608,46.87978311,3858.8,3858.7,0.002]
[1761954650914,44.2883039,3858.8,3858.7,0.002]
[1761954651276,42.89206939,3858.8,3858.7,0.002]
[1761954651919,42.48547916,3858.8,3858.7,0.002]
[1761954652121,45.07695837,3858.8,3858.7,0.002]
[1761954653319,49.92662625,3858.8,3858.7,0.002]
[1761954654027,49.91132625,3858.8,3858.7,0.4864]
[1761954654189,47.31984704,3858.8,3858.7,0.4864]
[1761954654387,31.933984,3858.7,3858.6,0.002]
[1761954654730,19.03330346,3858.7,3858.6,0.002]
[1761954654923,19.03330346,3858.7,3858.6,0.4864]
[1761954655113,19.03330346,3858.7,3858.6,0.9425]
[1761954655627,31.38391346,3858.7,3858.6,0.9425]
[1761954655789,30.28819746,3858.7,3858.6,0.9425]
[1761954656387,29.95221246,3858.7,3858.6,0.9425]
[1761954656592,30.17872546,3858.7,3858.6,0.9425]
[1761954656811,29.84929046,3858.7,3858.6,0.9425]
[1761954657030,27.45619446,3858.7,3858.6,0.9425]
[1761954657234,27.13487046,3858.7,3858.6,0.9425]
[1761954657724,31.75629146,3858.7,3858.6,0.9425]
[1761954657926,30.37199946,3858.7,3858.6,0.9425]
[1761954658113,29.93651246,3858.7,3858.6,0.9425]
[1761954658697,26.81168446,3858.7,3858.6,0.9425]
[1761954658899,13.77306946,3858.7,3858.6,0.9425]
[1761954659737,31.27892846,3858.7,3858.6,0.9425]
[1761954660230,37.63692046,3858.7,3858.6,0.9425]
[1761954660437,36.27782246,3858.7,3858.6,0.9425]
[1761954660736,38.21859746,3858.7,3858.6,0.9425]
[1761954661135,36.04343185,3858.7,3858.6,0.9425]
[1761954661509,35.49720685,3858.7,3858.6,0.9425]
[1761954661709,37.19765985,3858.7,3858.6,0.9425]
[1761954661909,39.69779639,3858.7,3858.6,0.002]
[1761954662145,39.62498259,3858.7,3858.6,0.002]
[1761954662319,43.07873296,3858.7,3858.6,0.002]
[1761954662708,54.89857608,3858.7,3858.6,0.002]
[1761954663839,53.50014396,3858.7,3858.6,0.002]
[1761954664845,53.90686723,3858.7,3858.6,0.002]
[1761954665348,54.31347319,3858.7,3858.6,0.002]
[1761954666327,51.72192682,3858.7,3858.6,0.002]
[1761954666525,53.1189131,3858.7,3858.6,0.002]
[1761954667114,55.71045947,3858.7,3858.6,0.002]
[1761954667634,57.96858098,3858.7,3858.6,0.002]
[1761954667947,59.16314107,3858.7,3858.6,0.002]
[1761954672265,31.805184,3858.0,3856.9,0.1904]
[1761954672491,39.40113248,3858.0,3857.4,0.4561]
[1761954672672,39.40113248,3858.0,3857.9,0.4864]
[1761954672673,29.28611817,3858.0,3857.9,0.4864]
[1761954672876,32.64494117,3858.0,3857.9,0.9425]
[1761954673182,43.57760776,3858.0,3857.9,0.4864]
[1761954673344,43.57760776,3858.0,3857.9,0.002]
[1761954673535,46.66192434,3858.0,3857.9,0.002]
[1761954673735,47.28776293,3858.0,3857.9,0.002]
[1761954673938,48.38525793,3858.0,3857.9,0.002]
[1761954674138,56.84195793,3858.0,3857.9,0.002]
[1761954676386,57.24863072,3858.0,3857.9,0.002]
[1761954677175,63.60662272,3858.0,3857.9,0.002]
[1761954678258,64.01341346,3858.0,3857.9,0.002]
[1761954679079,34.01341346,3858.0,3857.9,0.002]
[1761954679272,64.01341346,3858.0,3857.9,0.002]
[1761954683289,64.94227503,3858.0,3857.9,0.002]
[1761954684203,34.94227503,3858.0,3857.9,0.002]
[1761954684400,64.94227503,3858.0,3857.9,0.002]
[1761954685080,64.48557503,3858.0,3857.9,0.002]
[1761954685488,64.96867503,3858.0,3857.9,0.002]
[1761954687521,64.03981346,3858.0,3857.9,0.002]
[1761954687705,63.63314067,3858.0,3857.9,0.002]
[1761954688072,63.15004067,3858.0,3857.9,0.002]
[1761954688271,33.15004067,3858.0,3857.9,0.002]
[1761954688472,63.58682914,3858.0,3857.9,0.002]
[1761954688695,62.65774067,3858.0,3857.9,0.002]
[1761954688869,62.25094993,3858.0,3857.9,0.002]
[1761954689266,32.25094993,3858.0,3857.9,0.002]
[1761954689593,62.74824993,3858.0,3857.9,0.002]
[1761954690995,63.15493561,3858.0,3857.9,0.002]
[1761954692114,63.56173417,3858.0,3857.9,0.002]
[1761954692497,33.56173417,3858.0,3857.9,0.002]
[1761954692700,63.56173417,3858.0,3857.9,0.002]
[1761954694234,50.77308183,3858.0,3857.9,0.4729]
[1761954694518,51.79660781,3858.0,3857.9,0.9598]
[1761954694731,55.92685381,3858.0,3857.9,0.9598]
[1761954695219,48.77409112,3858.0,3857.9,0.9598]
[1761954695423,44.57427958,3858.0,3857.9,0.9598]
[1761954695595,49.94346902,3858.0,3857.9,0.9598]
[1761954696822,51.57309702,3858.0,3857.9,0.9598]
[1761954699059,51.97987295,3858.0,3857.9,0.9598]
[1761954700125,52.90981564,3858.0,3857.9,0.9598]
[1761954701154,57.65533727,3858.0,3857.9,0.9598]
[1761954701355,59.6597375,3858.0,3857.9,0.4729]
[1761954702227,62.65725808,3858.0,3857.9,0.4729]
[1761954702426,62.65725808,3858.0,3857.9,0.002]
[1761954702622,33.15455808,3858.0,3857.9,0.002]
[1761954702823,63.15455808,3858.0,3857.9,0.002]
[1761954703758,60.0652415,3858.0,3857.9,0.9598]
[1761954704253,60.47190723,3858.0,3857.9,0.9598]
[1761954705232,60.47190723,3858.0,3857.9,0.4729]
[1761954706238,60.47190723,3858.0,3857.9,0.9598]
[1761954707366,60.47190723,3858.0,3857.9,0.4729]
[1761954707767,30.47190723,3858.0,3857.9,0.4729]
[1761954707971,63.06392381,3858.0,3857.9,0.4729]
[1761954709250,60.47190723,3858.0,3857.9,0.9553]
[1761954709872,30.47190723,3858.0,3857.9,0.9553]
[1761954710085,60.47190723,3858.0,3857.9,0.9553]
[1761954710371,60.0652415,3858.0,3857.9,0.9553]
[1761954713175,53.11241703,3858.0,3857.9,0.9553]
[1761954713375,51.10855888,3858.0,3857.9,0.9553]
[1761954713557,51.51522461,3858.0,3857.9,0.9553]
[1761954714089,53.2128772,3858.0,3857.9,0.9553]
[1761954721413,23.2128772,3858.0,3857.9,0.9553]
[1761954721622,53.2128772,3858.0,3857.9,0.9553]
[1761954722216,47.8721042,3858.0,3857.9,0.9553]
[1761954722578,52.6803072,3858.0,3857.9,0.9553]
[1761954723608,53.2128772,3858.0,3857.9,0.9553]
[1761954723806,52.80621147,3858.0,3857.9,0.9553]
[1761954725288,55.41772301,3858.0,3857.9,0.4729]
[1761954725715,58.00973959,3858.0,3857.9,0.4729]
[1761954725917,59.4061093,3858.0,3857.9,0.002]
[1761954726603,29.4061093,3858.0,3857.9,0.002]
[1761954726810,59.4061093,3858.0,3857.9,0.002]
[1761954727017,59.81278338,3858.0,3857.9,0.002]
[1761954727521,60.26328338,3858.0,3857.9,0.002]
[1761954727920,59.81278338,3858.0,3857.9,0.002]
[1761954728116,60.26328338,3858.0,3857.9,0.002]
[1761954728322,57.6712668,3858.0,3857.9,0.002]
[1761954728920,57.2207668,3858.0,3857.9,0.002]
[1761954729302,57.2207668,3858.0,3857.9,0.4931]
[1761954729822,60.26328338,3858.0,3857.9,0.002]
[1761954730127,60.76088338,3858.0,3857.9,0.002]
[1761954731797,30.76088338,3858.0,3857.9,0.002]
[1761954732004,60.76088338,3858.0,3857.9,0.002]
[1761954734025,60.3542093,3858.0,3857.9,0.002]
[1761954734928,57.26459272,3858.0,3857.9,0.002]
[1761954735229,48.85412918,3858.0,3857.9,0.9755]
[1761954735525,48.22829059,3858.0,3857.9,0.4931]
[1761954735703,46.83192088,3858.0,3857.9,0.4931]
[1761954735903,52.18037288,3858.0,3857.9,0.9755]
[1761954736304,52.98905942,3858.0,3857.9,0.9755]
[1761954736731,19.22213613,3858.0,3857.9,0.9755]
[1761954736931,22.0187815,3858.0,3857.9,1.75492423]
[1761954737134,21.0290685,3858.0,3857.9,1.75492423]
[1761954737939,35.5349925,3858.0,3857.9,1.27252423]
[1761954738146,35.5349925,3858.0,3857.9,1.76052423]
[1761954738453,36.23428339,3858.0,3857.9,1.76052423]
[1761954739130,36.23328339,3858.0,3857.9,1.76052423]
[1761954739453,36.23328339,3858.0,3857.9,1.73162423]
[1761954739840,36.23328339,3858.0,3857.9,0.9522]
[1761954740041,36.09475039,3858.0,3857.9,0.9522]
[1761954740242,27.23037839,3858.0,3857.9,0.9522]
[1761954740932,25.83140239,3858.0,3857.9,0.9522]
[1761954741132,26.91263639,3858.0,3857.9,1.73162828]
[1761954742050,17.42223639,3858.0,3857.9,1.73162828]
[1761954742251,30.05573239,3858.0,3857.9,1.73162828]
[1761954742751,22.05573239,3858.0,3857.9,1.27252828]
[1761954742954,22.05573239,3858.0,3857.9,1.73162828]
[1761954743147,31.01306939,3858.0,3857.9,1.73162828]
[1761954743861,30.79268339,3858.0,3857.9,1.73162828]
[1761954744031,28.94670639,3858.0,3857.9,1.73162828]
[1761954744360,28.66148339,3858.0,3857.9,1.73162828]
[1761954745258,9.42223639,3858.0,3857.9,1.73162828]
[1761954745458,31.20927039,3858.0,3857.9,1.73162828]
[1761954745760,30.72213039,3858.0,3857.9,1.73162828]
[1761954746656,31.22198539,3858.0,3857.9,1.73162828]
[1761954746966,30.72213039,3858.0,3857.9,1.73162828]
[1761954747260,30.31546057,3858.0,3857.9,1.73162828]
[1761954747556,14.22463168,3858.0,3857.9,1.73162828]
[1761954747759,11.95306068,3858.0,3857.9,1.73162828]
[1761954748132,12.65235157,3858.0,3857.9,1.73162828]
[1761954748328,14.18070849,3858.0,3857.9,0.4931]
[1761954748549,40.84646292,3858.0,3857.9,0.4931]
[1761954748747,37.92370192,3858.0,3857.9,0.4931]
[1761954749161,39.34601562,3858.0,3857.9,0.002]
[1761954749360,38.41320192,3858.0,3857.9,0.002]
[1761954749565,41.33596292,3858.0,3857.9,0.002]
[1761954750264,42.67422292,3858.0,3857.9,0.002]
[1761954750765,43.0809904,3858.0,3857.9,0.002]
[1761954751328,43.08100804,3858.0,3857.9,0.002]
[1761954753461,12.59152091,3858.0,3857.9,0.464]
[1761954753662,42.59152091,3858.0,3857.9,0.464]
[1761954753862,42.59152091,3858.0,3857.9,0.002]
[1761954755048,41.2532304,3858.0,3857.9,0.002]
[1761954757970,41.65990068,3858.0,3857.9,0.002]
[1761954758563,11.65990068,3858.0,3857.9,0.002]
[1761954758764,41.65990068,3858.0,3857.9,0.002]
[1761954760870,44.25191726,3858.0,3857.9,0.002]
[1761954761796,44.74141726,3858.0,3857.9,0.002]
[1761954762180,44.25191726,3858.0,3857.9,0.002]
[1761954762382,44.74141726,3858.0,3857.9,0.002]
[1761954762586,52.25191726,3858.0,3857.9,0.002]
[1761954763102,52.74141726,3858.0,3857.9,0.002]
[1761954763803,22.74141726,3858.0,3857.9,0.002]
[1761954763999,52.74141726,3858.0,3857.9,0.002]
[1761954765207,53.21661726,3858.0,3857.9,0.002]
[1761954766183,52.74141726,3858.0,3857.9,0.002]
[1761954767908,22.74141726,3858.0,3857.9,0.002]
[1761954768071,53.21121726,3858.0,3857.9,0.002]
[1761954768276,52.33474698,3858.0,3857.9,0.002]
[1761954769806,52.80454698,3858.0,3857.9,0.002]
[1761954770699,52.33474698,3858.0,3857.9,0.002]
[1761954771101,49.7427304,3858.0,3857.9,0.002]
[1761954771299,52.33474698,3858.0,3857.9,0.002]
[1761954771797,49.2532304,3858.0,3857.9,0.4948]
[1761954771999,41.4671984,3858.0,3857.9,0.4948]
[1761954772309,40.46965181,3858.0,3857.9,0.9684]
[1761954772680,41.40202765,3858.0,3857.9,0.9684]
[1761954773111,46.31122065,3858.0,3857.9,0.9684]
[1761954773298,45.37884481,3858.0,3857.9,0.9684]
[1761954773992,51.21940839,3858.0,3857.9,0.9684]
[1761954774313,51.84524698,3858.0,3857.9,0.4948]
[1761954774521,49.2532304,3858.0,3857.9,0.4948]
[1761954775332,58.95580428,3858.0,3857.9,0.4948]
[1761954777284,43.3593234,3858.0,3857.9,0.4948]
[1761954777485,39.63933318,3858.0,3857.9,0.9684]
[1761954777681,37.4324451,3858.0,3857.9,0.9684]
[1761954778212,39.6323211,3858.0,3857.9,0.9684]
[1761954778415,38.0918101,3858.0,3857.9,0.9684]
[1761954779283,40.7767941,3858.0,3857.9,0.9684]
[1761954779490,39.4782241,3858.0,3857.9,0.9684]
[1761954779685,42.08973564,3858.0,3857.9,0.9684]
[1761954779889,41.37602164,3858.0,3857.9,0.9684]
[1761954780190,24.18584164,3858.0,3857.9,0.9684]
[1761954780520,41.89544964,3858.0,3857.9,0.9684]
[1761954781290,43.38372364,3858.0,3857.9,0.9684]
[1761954782402,47.26233564,3858.0,3857.9,0.9684]
[1761954783524,47.65917564,3858.0,3857.9,0.9684]
[1761954783738,45.22857564,3858.0,3857.9,0.9684]
[1761954783895,42.05428364,3858.0,3857.9,0.9684]
[1761954784098,39.4427721,3858.0,3857.9,0.4948]
[1761954784317,21.5743301,3858.0,3857.9,0.9684]
[1761954784497,40.1921891,3858.0,3857.9,1.74784043]
[1761954785628,40.1921891,3858.0,3857.9,0.78144043]
[1761954785629,50.88494079,3858.0,3857.9,0.78144043]
[1761954785818,54.84942578,3858.0,3857.9,0.002]
[1761954786318,58.84053762,3858.0,3857.9,0.002]
[1761954786521,64.57844962,3858.0,3857.9,0.002]
[1761954789428,34.98511793,3858.0,3857.9,0.002]
[1761954789725,64.98511793,3858.0,3857.9,0.002]
[1761954790428,62.39310135,3858.0,3857.9,0.002]
[1761954790633,64.98511793,3858.0,3857.9,0.002]
[1761954792337,62.39310135,3858.0,3857.9,0.002]
[1761954792862,64.98511793,3858.0,3857.9,0.002]
[1761954793545,34.98511793,3858.0,3857.9,0.002]
[1761954793848,64.98511793,3858.0,3857.9,0.002]
[1761954795022,62.39310135,3858.0,3857.9,0.002]
[1761954796474,61.92330135,3858.0,3857.9,0.002]
[1761954798666,64.51531793,3858.0,3857.9,0.002]
[1761954799025,65.39142193,3858.0,3857.9,0.002]
[1761954799230,63.99232667,3858.0,3857.9,0.002]
[1761954799647,63.58565836,3858.0,3857.9,0.002]
[1761954799834,64.57836233,3858.0,3857.9,0.002]
[1761954800033,63.17889088,3858.0,3857.9,0.002]
[1761954801371,64.57826427,3858.0,3857.9,0.002]
[1761954803060,64.98503806,3858.0,3857.9,0.002]
[1761954803827,34.98503806,3858.0,3857.9,0.002]
[1761954804035,64.98503806,3858.0,3857.9,0.002]
[1761954813364,63.58566467,3858.0,3857.9,0.002]
[1761954813865,63.17889088,3858.0,3857.9,0.002]
[1761954815174,33.17889088,3858.0,3857.9,0.002]
[1761954815388,63.17889088,3858.0,3857.9,0.002]
[1761954816490,60.06965183,3858.0,3857.9,0.002]
[1761954816689,60.56485183,3858.0,3857.9,0.002]
[1761954816986,63.15686841,3858.0,3857.9,0.002]
[1761954817187,63.56364013,3858.0,3857.9,0.002]
[1761954817685,60.97162355,3858.0,3857.9,0.002]
[1761954817896,63.56364013,3858.0,3857.9,0.002]
[1761954819695,2.59216861,3857.8,3857.5,0.002]
[1761954819862,30.55319,3857.6,3857.5,0.002]
[1761954820067,31.11306429,3857.6,3857.5,0.002]
[1761954820293,32.08915429,3857.6,3857.5,0.002]
[1761954820762,33.02256978,3857.6,3857.5,0.492]
[1761954821192,27.63039678,3857.6,3857.5,0.9675]
[1761954821507,27.27300778,3857.6,3857.5,0.9675]
[1761954821866,24.09436378,3857.6,3857.5,0.9675]
[1761954822297,25.35574078,3857.6,3857.5,0.9675]
[1761954822816,23.37730184,3857.6,3857.5,0.9675]
[1761954823400,33.14886484,3857.6,3857.5,0.492]
[1761954823718,35.76037638,3857.6,3857.5,0.492]
[1761954824328,5.76037638,3857.6,3857.5,0.492]
[1761954824619,42.84717154,3857.6,3857.5,0.002]
[1761954824826,43.1496689,3857.6,3857.5,0.002]
[1761954825212,42.21629548,3857.6,3857.5,0.002]
[1761954825407,43.14967034,3857.6,3857.5,0.002]
[1761954825990,43.14967034,3857.6,3857.5,0.492]
[1761954826604,39.55115634,3857.6,3857.5,0.975]
[1761954827397,40.11698434,3857.6,3857.5,0.975]
[1761954827597,39.66637034,3857.6,3857.5,0.975]
[1761954828022,39.26086634,3857.6,3857.5,0.492]
[1761954828229,39.26086634,3857.6,3857.5,0.975]
[1761954828230,36.3072848,3857.6,3857.5,0.975]
[1761954828530,35.95436274,3857.6,3857.5,0.975]
[1761954828698,35.69462374,3857.6,3857.5,0.975]
[1761954829427,10.00635974,3857.6,3857.5,0.975]
[1761954829633,35.69462374,3857.6,3857.5,0.975]
[1761954829834,35.43498474,3857.6,3857.5,0.975]
[1761954830500,35.42823574,3857.6,3857.5,0.975]
[1761954831221,34.28804274,3857.6,3857.5,0.975]
[1761954831532,35.42613474,3857.6,3857.5,0.975]
[1761954832635,35.43615274,3857.6,3857.5,0.975]
[1761954833715,36.23495574,3857.6,3857.5,0.975]
[1761954834618,38.72924974,3857.6,3857.5,0.975]
[1761954834819,38.72901958,3857.6,3857.5,0.975]
[1761954835741,39.75764158,3857.6,3857.5,0.975]
[1761954836039,37.92351958,3857.6,3857.5,0.975]
[1761954836649,10.00612958,3857.6,3857.5,0.975]
[1761954836808,37.92351958,3857.6,3857.5,0.975]
[1761954837234,36.32351958,3857.6,3857.5,0.975]
[1761954837443,41.78247305,3857.6,3857.5,0.975]
[1761954837744,41.74384805,3857.6,3857.5,0.975]
[1761954837949,41.19186205,3857.6,3857.5,0.975]
[1761954838747,15.46508305,3857.6,3857.5,0.975]
[1761954838953,41.83375005,3857.6,3857.5,0.975]
[1761954840450,41.83375005,3857.6,3857.5,0.492]
[1761954840653,42.28895005,3857.6,3857.5,0.002]
[1761954840853,46.18005849,3857.6,3857.5,0.002]
[1761954841027,45.72485849,3857.6,3857.5,0.002]